[Event "Titled Tuesday Blitz October 31 Early 2023"]
[White "Ozates, Tuna"]
[Black "FoxOnTheRun97"]
[WhiteFideId "6354521"]
[WhiteElo "2671"]
[BlackElo "2607"]
[Result "1-0"]
[Round "10"]
[TimeControl "180+1"]
[Date "2023.10.31"]
[WhiteClock "0:00:38"]
[BlackClock "0:00:00"]
[Board "57"]

1. c4 {[%clk 0:02:57]}  Nf6 {[%clk 0:02:59]} 2. Nc3 {[%clk 0:02:57]}  e6 {[%clk 0:02:59]} 3. d4 {[%clk 0:02:55]}  Bb4 {[%clk 0:02:59]} 4. g3 {[%clk 0:02:50]}  O-O {[%clk 0:02:58]} 5. Bg2 {[%clk 0:02:49]}  c5 {[%clk 0:02:54]} 6. d5 {[%clk 0:02:49]}  exd5 {[%clk 0:02:49]} 7. cxd5 {[%clk 0:02:50]}  d6 {[%clk 0:02:49]} 8. Nf3 {[%clk 0:02:49]}  Bf5 {[%clk 0:02:45]} 9. O-O {[%clk 0:02:49]}  Bxc3 {[%clk 0:02:39]} 10. bxc3 {[%clk 0:02:49]}  Be4 {[%clk 0:02:39]} 11. c4 {[%clk 0:02:45]}  b5 {[%clk 0:02:39]} 12. Nd2 {[%clk 0:02:40]}  Bxg2 {[%clk 0:02:37]} 13. Kxg2 {[%clk 0:02:40]}  a6 {[%clk 0:02:09]} 14. f3 {[%clk 0:02:37]}  Nbd7 {[%clk 0:02:03]} 15. e4 {[%clk 0:02:36]}  Ne5 {[%clk 0:02:01]} 16. Qe2 {[%clk 0:02:33]}  Re8 {[%clk 0:01:58]} 17. Bb2 {[%clk 0:02:30]}  Rb8 {[%clk 0:01:51]} 18. a4 {[%clk 0:02:21]}  Nxc4 {[%clk 0:01:40]} 19. Nxc4 {[%clk 0:02:19]}  bxc4 {[%clk 0:01:40]} 20. Bc3 {[%clk 0:02:19]}  Nd7 {[%clk 0:01:33]} 21. Qxc4 {[%clk 0:02:17]}  Ne5 {[%clk 0:01:32]} 22. Bxe5 {[%clk 0:02:10]}  Rxe5 {[%clk 0:01:30]} 23. Rfb1 {[%clk 0:02:11]}  Re8 {[%clk 0:01:08]} 24. Qxa6 {[%clk 0:02:10]}  Qf6 {[%clk 0:01:07]} 25. Qe2 {[%clk 0:01:56]}  Qd4 {[%clk 0:00:40]} 26. Qc2 {[%clk 0:01:54]}  g5 {[%clk 0:00:23]} 27. h3 {[%clk 0:01:52]}  h5 {[%clk 0:00:21]} 28. Qc1 {[%clk 0:01:36]}  f6 {[%clk 0:00:16]} 29. a5 {[%clk 0:01:36]}  g4 {[%clk 0:00:14]} 30. hxg4 {[%clk 0:01:37]}  hxg4 {[%clk 0:00:14]} 31. Rxb8 {[%clk 0:01:38]}  gxf3+ {[%clk 0:00:12]} 32. Kh3 {[%clk 0:01:30]}  Rxb8 {[%clk 0:00:11]} 33. Rb1 {[%clk 0:01:23]}  Ra8 {[%clk 0:00:05]} 34. Qf4 {[%clk 0:01:15]}  Qe5 {[%clk 0:00:02]} 35. Qxf3 {[%clk 0:01:09]}  Qg5 {[%clk 0:00:03]} 36. Ra1 {[%clk 0:00:58]}  Kg7 {[%clk 0:00:02]} 37. Kg2 {[%clk 0:00:53]}  Rh8 {[%clk 0:00:01]} 38. Qe2 {[%clk 0:00:42]}  Qe5 {[%clk 0:00:01]} 39. Qg4+ {[%clk 0:00:42]}  Kf7 {[%clk 0:00:00]} 40. Rb1 {[%clk 0:00:38]} 1-0


[Site "https://www.chess.com"]

[Event "Titled Tuesday Blitz October 31 Early 2023"]
[White "MMAHDI2013"]
[Black "Volkov, Maksim"]
[BlackFideId "54123070"]
[WhiteElo "2462"]
[BlackElo "2645"]
[Result "1-0"]
[Round "10"]
[TimeControl "180+1"]
[Date "2023.10.31"]
[WhiteClock "0:00:09"]
[BlackClock "0:00:09"]
[Board "59"]

1. c4 {[%clk 0:03:00]}  e6 {[%clk 0:02:59]} 2. Nf3 {[%clk 0:03:00]}  d5 {[%clk 0:02:58]} 3. g3 {[%clk 0:03:01]}  Nf6 {[%clk 0:02:59]} 4. Bg2 {[%clk 0:03:00]}  dxc4 {[%clk 0:02:59]} 5. Qa4+ {[%clk 0:02:59]}  Nbd7 {[%clk 0:02:59]} 6. O-O {[%clk 0:02:57]}  a6 {[%clk 0:03:00]} 7. Qxc4 {[%clk 0:02:53]}  b5 {[%clk 0:03:00]} 8. Qc2 {[%clk 0:02:53]}  Bb7 {[%clk 0:02:57]} 9. d3 {[%clk 0:02:34]}  c5 {[%clk 0:02:52]} 10. b3 {[%clk 0:02:31]}  Bd6 {[%clk 0:02:49]} 11. Bb2 {[%clk 0:02:30]}  O-O {[%clk 0:02:50]} 12. e4 {[%clk 0:02:27]}  Qc7 {[%clk 0:02:44]} 13. Nbd2 {[%clk 0:02:13]}  e5 {[%clk 0:02:33]} 14. Nh4 {[%clk 0:02:08]}  g6 {[%clk 0:02:32]} 15. h3 {[%clk 0:01:32]}  Nb8 {[%clk 0:02:31]} 16. f4 {[%clk 0:01:29]}  Nfd7 {[%clk 0:02:16]} 17. f5 {[%clk 0:01:22]}  Nc6 {[%clk 0:02:14]} 18. g4 {[%clk 0:01:20]}  Nd4 {[%clk 0:02:10]} 19. Qd1 {[%clk 0:01:19]}  Rad8 {[%clk 0:02:07]} 20. Ndf3 {[%clk 0:01:16]}  Be7 {[%clk 0:02:02]} 21. Qd2 {[%clk 0:01:12]}  Nb8 {[%clk 0:01:53]} 22. Qh6 {[%clk 0:01:10]}  Nxf3+ {[%clk 0:01:37]} 23. Nxf3 {[%clk 0:01:05]}  Nc6 {[%clk 0:01:37]} 24. g5 {[%clk 0:01:04]}  Rfe8 {[%clk 0:01:35]} 25. Rad1 {[%clk 0:00:57]}  Bf8 {[%clk 0:01:34]} 26. Qh4 {[%clk 0:00:57]}  Nd4 {[%clk 0:01:30]} 27. Bxd4 {[%clk 0:00:54]}  exd4 {[%clk 0:01:30]} 28. Rfe1 {[%clk 0:00:47]}  c4 {[%clk 0:01:28]} 29. bxc4 {[%clk 0:00:46]}  bxc4 {[%clk 0:01:29]} 30. Nh2 {[%clk 0:00:47]}  gxf5 {[%clk 0:01:05]} 31. exf5 {[%clk 0:00:43]}  Bxg2 {[%clk 0:01:05]} 32. Ng4 {[%clk 0:00:39]}  Bg7 {[%clk 0:00:59]} 33. f6 {[%clk 0:00:26]}  Bf3 {[%clk 0:00:53]} 34. Rxe8+ {[%clk 0:00:19]}  Rxe8 {[%clk 0:00:54]} 35. fxg7 {[%clk 0:00:12]}  Bxg4 {[%clk 0:00:53]} 36. Qxg4 {[%clk 0:00:13]}  c3 {[%clk 0:00:45]} 37. Rc1 {[%clk 0:00:13]}  Qe5 {[%clk 0:00:43]} 38. Kh1 {[%clk 0:00:11]}  Qe3 {[%clk 0:00:34]} 39. Rf1 {[%clk 0:00:09]}  Kxg7 {[%clk 0:00:23]} 40. Qf5 {[%clk 0:00:07]}  Re7 {[%clk 0:00:21]} 41. Qf6+ {[%clk 0:00:07]}  Kg8 {[%clk 0:00:22]} 42. Qf5 {[%clk 0:00:06]}  c2 {[%clk 0:00:20]} 43. Qc8+ {[%clk 0:00:06]}  Kg7 {[%clk 0:00:21]} 44. Qxc2 {[%clk 0:00:07]}  Qxh3+ {[%clk 0:00:21]} 45. Kg1 {[%clk 0:00:08]}  Re3 {[%clk 0:00:22]} 46. Rxf7+ {[%clk 0:00:05]}  Kxf7 {[%clk 0:00:22]} 47. Qc7+ {[%clk 0:00:05]}  Kg6 {[%clk 0:00:18]} 48. Qd6+ {[%clk 0:00:05]}  Qe6 {[%clk 0:00:18]} 49. Qxd4 {[%clk 0:00:04]}  Qg4+ {[%clk 0:00:18]} 50. Qxg4 {[%clk 0:00:03]}  Re5 {[%clk 0:00:15]} 51. Qd4 {[%clk 0:00:03]}  Rf5 {[%clk 0:00:16]} 52. Qd6+ {[%clk 0:00:02]}  Kxg5 {[%clk 0:00:16]} 53. Qxa6 {[%clk 0:00:03]}  Kf4 {[%clk 0:00:15]} 54. a4 {[%clk 0:00:03]}  Ke3 {[%clk 0:00:14]} 55. Qe6+ {[%clk 0:00:03]}  Kf4 {[%clk 0:00:15]} 56. a5 {[%clk 0:00:03]}  Rg5+ {[%clk 0:00:15]} 57. Kf1 {[%clk 0:00:02]}  Rxa5 {[%clk 0:00:16]} 58. Qd6+ {[%clk 0:00:03]}  Kf5 {[%clk 0:00:15]} 59. Qd7+ {[%clk 0:00:03]}  Kg6 {[%clk 0:00:16]} 60. Qe6+ {[%clk 0:00:03]}  Kg7 {[%clk 0:00:15]} 61. Qe7+ {[%clk 0:00:03]}  Kg6 {[%clk 0:00:16]} 62. Qd6+ {[%clk 0:00:04]}  Kf5 {[%clk 0:00:15]} 63. Qd7+ {[%clk 0:00:04]}  Kg6 {[%clk 0:00:15]} 64. d4 {[%clk 0:00:04]}  Rf5+ {[%clk 0:00:15]} 65. Ke2 {[%clk 0:00:05]}  h5 {[%clk 0:00:14]} 66. Kd3 {[%clk 0:00:05]}  Kf6 {[%clk 0:00:14]} 67. Qd8+ {[%clk 0:00:05]}  Ke6 {[%clk 0:00:14]} 68. Qh8 {[%clk 0:00:05]}  Rg5 {[%clk 0:00:12]} 69. Qh6+ {[%clk 0:00:06]}  Kf5 {[%clk 0:00:12]} 70. d5 {[%clk 0:00:06]}  Kg4 {[%clk 0:00:11]} 71. d6 {[%clk 0:00:05]}  Rd5+ {[%clk 0:00:11]} 72. Ke4 {[%clk 0:00:06]}  Rd1 {[%clk 0:00:12]} 73. Qg6+ {[%clk 0:00:06]}  Kh4 {[%clk 0:00:12]} 74. Qf6+ {[%clk 0:00:07]}  Kg4 {[%clk 0:00:12]} 75. d7 {[%clk 0:00:07]}  Re1+ {[%clk 0:00:11]} 76. Kd3 {[%clk 0:00:08]}  Rd1+ {[%clk 0:00:12]} 77. Ke2 {[%clk 0:00:08]}  Rxd7 {[%clk 0:00:12]} 78. Qe6+ {[%clk 0:00:09]}  Kh4 {[%clk 0:00:09]} 79. Qxd7 {[%clk 0:00:09]} 1-0


[Site "https://www.chess.com"]

[Event "Titled Tuesday Blitz October 31 Early 2023"]
[White "kushbhagat2009"]
[Black "Ziatdinov, Raset"]
[BlackFideId "2015323"]
[WhiteElo "2630"]
[BlackElo "2448"]
[Result "0-1"]
[Round "10"]
[TimeControl "180+1"]
[Date "2023.10.31"]
[WhiteClock "0:01:02"]
[BlackClock "0:01:51"]
[Board "60"]

1. d4 {[%clk 0:02:52]}  Nf6 {[%clk 0:02:58]} 2. Bf4 {[%clk 0:02:52]}  g6 {[%clk 0:02:55]} 3. e3 {[%clk 0:02:51]}  Bg7 {[%clk 0:02:54]} 4. Nf3 {[%clk 0:02:52]}  d5 {[%clk 0:02:54]} 5. Be2 {[%clk 0:02:47]}  O-O {[%clk 0:02:54]} 6. Ne5 {[%clk 0:02:48]}  b6 {[%clk 0:02:54]} 7. h4 {[%clk 0:02:48]}  h5 {[%clk 0:02:53]} 8. g4 {[%clk 0:02:46]}  Nxg4 {[%clk 0:02:48]} 9. Bxg4 {[%clk 0:02:33]}  Bxg4 {[%clk 0:02:46]} 10. Nxg4 {[%clk 0:02:33]}  hxg4 {[%clk 0:02:46]} 11. Qxg4 {[%clk 0:02:31]}  Qd7 {[%clk 0:02:38]} 12. Qg3 {[%clk 0:02:29]}  c5 {[%clk 0:02:34]} 13. h5 {[%clk 0:02:26]}  Qf5 {[%clk 0:02:34]} 14. hxg6 {[%clk 0:02:09]}  fxg6 {[%clk 0:02:33]} 15. c3 {[%clk 0:01:57]}  Nc6 {[%clk 0:02:21]} 16. Nd2 {[%clk 0:01:54]}  cxd4 {[%clk 0:02:11]} 17. O-O-O {[%clk 0:01:29]}  dxc3 {[%clk 0:02:08]} 18. bxc3 {[%clk 0:01:30]}  Nb4 {[%clk 0:01:59]} 19. cxb4 {[%clk 0:01:18]}  Rac8+ {[%clk 0:01:59]} 20. Bc7 {[%clk 0:01:16]}  Rxc7+ {[%clk 0:01:52]} 21. Qxc7 {[%clk 0:01:15]}  Rc8 {[%clk 0:01:52]} 22. Qxc8+ {[%clk 0:01:15]}  Qxc8+ {[%clk 0:01:51]} 23. Kb1 {[%clk 0:01:02]}  Qc3 {[%clk 0:01:51]} 0-1


[Site "https://www.chess.com"]

[Event "Titled Tuesday Blitz October 31 Early 2023"]
[White "Haitin, Ilja"]
[Black "Bodnaruk, Anastasia"]
[WhiteFideId "4501764"]
[BlackFideId "4181751"]
[WhiteElo "2427"]
[BlackElo "2618"]
[Result "1-0"]
[Round "10"]
[TimeControl "180+1"]
[Date "2023.10.31"]
[WhiteClock "0:00:02"]
[BlackClock "0:00:07"]
[Board "62"]

1. Nf3 {[%clk 0:03:00]}  Nf6 {[%clk 0:02:59]} 2. g3 {[%clk 0:03:00]}  g6 {[%clk 0:02:58]} 3. b3 {[%clk 0:03:01]}  Bg7 {[%clk 0:02:58]} 4. Bb2 {[%clk 0:03:01]}  d6 {[%clk 0:02:57]} 5. d4 {[%clk 0:03:01]}  c5 {[%clk 0:02:51]} 6. Bg2 {[%clk 0:02:51]}  O-O {[%clk 0:02:47]} 7. c4 {[%clk 0:02:51]}  Ne4 {[%clk 0:02:37]} 8. O-O {[%clk 0:02:48]}  Nc6 {[%clk 0:01:38]} 9. Nbd2 {[%clk 0:02:18]}  Nxd2 {[%clk 0:01:27]} 10. Qxd2 {[%clk 0:02:18]}  cxd4 {[%clk 0:01:11]} 11. Nxd4 {[%clk 0:02:19]}  Bd7 {[%clk 0:01:03]} 12. Rad1 {[%clk 0:02:11]}  Rc8 {[%clk 0:00:55]} 13. Nf3 {[%clk 0:02:01]}  Bxb2 {[%clk 0:00:47]} 14. Qxb2 {[%clk 0:02:02]}  Qa5 {[%clk 0:00:45]} 15. Rd5 {[%clk 0:01:45]}  Qb6 {[%clk 0:00:38]} 16. Qd2 {[%clk 0:01:30]}  Nb4 {[%clk 0:00:32]} 17. Rd4 {[%clk 0:01:06]}  Rfd8 {[%clk 0:00:25]} 18. Qh6 {[%clk 0:01:02]}  d5 {[%clk 0:00:13]} 19. Rh4 {[%clk 0:00:33]}  Qf6 {[%clk 0:00:12]} 20. Qxh7+ {[%clk 0:00:29]}  Kf8 {[%clk 0:00:12]} 21. Ng5 {[%clk 0:00:13]}  Qg7 {[%clk 0:00:12]} 22. Qxg7+ {[%clk 0:00:11]}  Kxg7 {[%clk 0:00:12]} 23. cxd5 {[%clk 0:00:11]}  Nxa2 {[%clk 0:00:12]} 24. Rf4 {[%clk 0:00:09]}  f6 {[%clk 0:00:12]} 25. Ne6+ {[%clk 0:00:08]}  Bxe6 {[%clk 0:00:12]} 26. dxe6 {[%clk 0:00:09]}  Rc2 {[%clk 0:00:12]} 27. Ra4 {[%clk 0:00:08]}  Rxe2 {[%clk 0:00:12]} 28. Rxa7 {[%clk 0:00:08]}  Nc3 {[%clk 0:00:12]} 29. Rxb7 {[%clk 0:00:08]}  Rxe6 {[%clk 0:00:12]} 30. Bh3 {[%clk 0:00:07]}  f5 {[%clk 0:00:12]} 31. Kg2 {[%clk 0:00:07]}  Ne2 {[%clk 0:00:13]} 32. Ra1 {[%clk 0:00:05]}  Rd2 {[%clk 0:00:12]} 33. Raa7 {[%clk 0:00:04]}  Kf6 {[%clk 0:00:12]} 34. g4 {[%clk 0:00:03]}  Nf4+ {[%clk 0:00:12]} 35. Kg3 {[%clk 0:00:03]}  Rd3+ {[%clk 0:00:12]} 36. f3 {[%clk 0:00:03]}  Re2 {[%clk 0:00:10]} 37. Kxf4 {[%clk 0:00:02]}  e5+ {[%clk 0:00:08]} 38. Kg3 {[%clk 0:00:02]}  f4+ {[%clk 0:00:08]} 39. Kh4 {[%clk 0:00:02]}  Rd6 {[%clk 0:00:07]} 40. g5# {[%clk 0:00:02]} 1-0


[Site "https://www.chess.com"]

[Event "Titled Tuesday Blitz October 31 Early 2023"]
[White "Topalov, Aleksandar"]
[Black "Ahmad, Khagan"]
[WhiteFideId "925659"]
[BlackFideId "13431552"]
[WhiteElo "2282"]
[BlackElo "2614"]
[Result "0-1"]
[Round "10"]
[TimeControl "180+1"]
[Date "2023.10.31"]
[WhiteClock "0:00:01"]
[BlackClock "0:00:05"]
[Board "63"]

1. b3 {[%clk 0:03:00]}  Nc6 {[%clk 0:02:59]} 2. Bb2 {[%clk 0:02:59]}  e5 {[%clk 0:02:59]} 3. e3 {[%clk 0:02:59]}  a6 {[%clk 0:02:57]} 4. c4 {[%clk 0:02:56]}  Nf6 {[%clk 0:02:57]} 5. Nf3 {[%clk 0:02:56]}  d6 {[%clk 0:02:55]} 6. d4 {[%clk 0:02:55]}  exd4 {[%clk 0:02:55]} 7. Nxd4 {[%clk 0:02:55]}  Nxd4 {[%clk 0:02:54]} 8. Qxd4 {[%clk 0:02:54]}  Be7 {[%clk 0:02:53]} 9. Nc3 {[%clk 0:02:53]}  Be6 {[%clk 0:02:50]} 10. Be2 {[%clk 0:02:52]}  c5 {[%clk 0:02:33]} 11. Qd2 {[%clk 0:02:48]}  d5 {[%clk 0:01:14]} 12. cxd5 {[%clk 0:02:40]}  Nxd5 {[%clk 0:01:15]} 13. Rd1 {[%clk 0:02:16]}  Nb4 {[%clk 0:00:46]} 14. Qc1 {[%clk 0:01:47]}  Qa5 {[%clk 0:00:38]} 15. O-O {[%clk 0:01:44]}  Nxa2 {[%clk 0:00:30]} 16. Nxa2 {[%clk 0:01:43]}  Qxa2 {[%clk 0:00:29]} 17. Bxg7 {[%clk 0:01:23]}  Rg8 {[%clk 0:00:26]} 18. Be5 {[%clk 0:01:21]}  Qxb3 {[%clk 0:00:16]} 19. Bf3 {[%clk 0:01:11]}  Bg4 {[%clk 0:00:15]} 20. Bd5 {[%clk 0:00:42]}  Qb6 {[%clk 0:00:14]} 21. f3 {[%clk 0:00:37]}  Be6 {[%clk 0:00:14]} 22. Be4 {[%clk 0:00:32]}  f5 {[%clk 0:00:14]} 23. Bd5 {[%clk 0:00:28]}  Bxd5 {[%clk 0:00:13]} 24. Rxd5 {[%clk 0:00:28]}  Qe6 {[%clk 0:00:14]} 25. e4 {[%clk 0:00:20]}  fxe4 {[%clk 0:00:11]} 26. fxe4 {[%clk 0:00:20]}  Rd8 {[%clk 0:00:08]} 27. Rfd1 {[%clk 0:00:17]}  Rxd5 {[%clk 0:00:08]} 28. Rxd5 {[%clk 0:00:17]}  Qg4 {[%clk 0:00:08]} 29. Qd2 {[%clk 0:00:13]}  Qxe4 {[%clk 0:00:07]} 30. Bc7 {[%clk 0:00:10]}  Qb1+ {[%clk 0:00:06]} 31. Kf2 {[%clk 0:00:08]}  Rf8+ {[%clk 0:00:07]} 32. Kg3 {[%clk 0:00:08]}  Qg6+ {[%clk 0:00:05]} 33. Kh3 {[%clk 0:00:07]}  Qe6+ {[%clk 0:00:05]} 34. Kg3 {[%clk 0:00:07]}  Rg8+ {[%clk 0:00:05]} 35. Kf2 {[%clk 0:00:06]}  Rf8+ {[%clk 0:00:04]} 36. Kg1 {[%clk 0:00:07]}  Qf6 {[%clk 0:00:02]} 37. Qe2 {[%clk 0:00:05]}  Qa1+ {[%clk 0:00:02]} 38. Rd1 {[%clk 0:00:05]}  Qf6 {[%clk 0:00:02]} 39. Bd6 {[%clk 0:00:04]}  Rf7 {[%clk 0:00:01]} 40. Bg3 {[%clk 0:00:03]}  Kf8 {[%clk 0:00:01]} 41. h3 {[%clk 0:00:02]}  Qg6 {[%clk 0:00:02]} 42. Kh2 {[%clk 0:00:02]}  Rg7 {[%clk 0:00:02]} 43. Rf1+ {[%clk 0:00:01]}  Kg8 {[%clk 0:00:02]} 44. Rf3 {[%clk 0:00:02]}  h5 {[%clk 0:00:02]} 45. Qa2+ {[%clk 0:00:01]}  Kh7 {[%clk 0:00:02]} 46. Qc4 {[%clk 0:00:01]}  h4 {[%clk 0:00:02]} 47. Qg4 {[%clk 0:00:01]}  Qxg4 {[%clk 0:00:02]} 48. hxg4 {[%clk 0:00:01]}  hxg3+ {[%clk 0:00:03]} 49. Kxg3 {[%clk 0:00:01]}  Bd6+ {[%clk 0:00:03]} 50. Kh4 {[%clk 0:00:01]}  Rc7 {[%clk 0:00:04]} 51. g5 {[%clk 0:00:01]}  c4 {[%clk 0:00:04]} 52. Kh5 {[%clk 0:00:01]}  c3 {[%clk 0:00:05]} 53. g6+ {[%clk 0:00:02]}  Kg7 {[%clk 0:00:05]} 54. Rxc3 {[%clk 0:00:01]}  Rxc3 {[%clk 0:00:05]} 0-1


[Site "https://www.chess.com"]

[Event "Titled Tuesday Blitz October 31 Early 2023"]
[White "MFatigue"]
[Black "Gontcharov, Vladislav"]
[BlackFideId "4123492"]
[WhiteElo "2496"]
[BlackElo "2576"]
[Result "0-1"]
[Round "10"]
[TimeControl "180+1"]
[Date "2023.10.31"]
[WhiteClock "0:00:49"]
[BlackClock "0:01:22"]
[Board "67"]

1. e4 {[%clk 0:03:00]}  e6 {[%clk 0:02:57]} 2. d4 {[%clk 0:02:59]}  d5 {[%clk 0:02:54]} 3. Nc3 {[%clk 0:02:59]}  Nc6 {[%clk 0:02:51]} 4. Nf3 {[%clk 0:02:58]}  Nf6 {[%clk 0:02:50]} 5. Bd3 {[%clk 0:02:47]}  Bb4 {[%clk 0:02:42]} 6. e5 {[%clk 0:02:37]}  Ne4 {[%clk 0:02:41]} 7. Bd2 {[%clk 0:02:34]}  Nxd2 {[%clk 0:02:28]} 8. Qxd2 {[%clk 0:02:35]}  Be7 {[%clk 0:02:25]} 9. O-O {[%clk 0:02:34]}  a6 {[%clk 0:02:25]} 10. Ne2 {[%clk 0:02:34]}  Nb4 {[%clk 0:02:22]} 11. c3 {[%clk 0:02:21]}  Nxd3 {[%clk 0:02:21]} 12. Qxd3 {[%clk 0:02:22]}  c5 {[%clk 0:02:20]} 13. c4 {[%clk 0:02:17]}  cxd4 {[%clk 0:02:14]} 14. Nexd4 {[%clk 0:02:14]}  O-O {[%clk 0:02:11]} 15. Rfd1 {[%clk 0:02:07]}  dxc4 {[%clk 0:02:02]} 16. Qxc4 {[%clk 0:02:08]}  Bd7 {[%clk 0:02:02]} 17. a4 {[%clk 0:01:58]}  Rc8 {[%clk 0:01:48]} 18. Qb3 {[%clk 0:01:59]}  Qc7 {[%clk 0:01:46]} 19. h3 {[%clk 0:01:50]}  Rfd8 {[%clk 0:01:39]} 20. Qe3 {[%clk 0:01:46]}  Be8 {[%clk 0:01:35]} 21. Qf4 {[%clk 0:01:40]}  h6 {[%clk 0:01:33]} 22. b3 {[%clk 0:01:36]}  Rd5 {[%clk 0:01:27]} 23. Rac1 {[%clk 0:01:24]}  Qd8 {[%clk 0:01:26]} 24. Rxc8 {[%clk 0:01:24]}  Qxc8 {[%clk 0:01:26]} 25. Rc1 {[%clk 0:01:25]}  Qd8 {[%clk 0:01:25]} 26. g4 {[%clk 0:01:14]}  Bg5 {[%clk 0:01:23]} 27. Nxg5 {[%clk 0:00:49]}  hxg5 {[%clk 0:01:22]} 0-1


[Site "https://www.chess.com"]

[Event "Titled Tuesday Blitz October 31 Early 2023"]
[White "Ergali_Suleimen"]
[Black "Panda Sambit"]
[BlackFideId "25091794"]
[WhiteElo "2560"]
[BlackElo "2486"]
[Result "0-1"]
[Round "10"]
[TimeControl "180+1"]
[Date "2023.10.31"]
[WhiteClock "0:00:00"]
[BlackClock "0:00:05"]
[Board "69"]

1. e4 {[%clk 0:03:00]}  c6 {[%clk 0:02:57]} 2. d4 {[%clk 0:03:00]}  d5 {[%clk 0:02:58]} 3. Nd2 {[%clk 0:03:01]}  dxe4 {[%clk 0:02:58]} 4. Nxe4 {[%clk 0:03:01]}  Nf6 {[%clk 0:02:59]} 5. Nxf6+ {[%clk 0:03:02]}  exf6 {[%clk 0:02:59]} 6. Nf3 {[%clk 0:03:02]}  Bd6 {[%clk 0:02:59]} 7. Bd3 {[%clk 0:03:02]}  O-O {[%clk 0:02:58]} 8. O-O {[%clk 0:03:03]}  Re8 {[%clk 0:02:56]} 9. c3 {[%clk 0:03:02]}  Bg4 {[%clk 0:02:56]} 10. h3 {[%clk 0:03:01]}  Bh5 {[%clk 0:02:55]} 11. Bf5 {[%clk 0:03:02]}  Nd7 {[%clk 0:02:52]} 12. Qd3 {[%clk 0:03:00]}  Nf8 {[%clk 0:02:52]} 13. Bd2 {[%clk 0:02:55]}  Bg6 {[%clk 0:02:51]} 14. Rfe1 {[%clk 0:02:50]}  Qa5 {[%clk 0:02:48]} 15. Nh4 {[%clk 0:02:45]}  Rxe1+ {[%clk 0:02:43]} 16. Bxe1 {[%clk 0:02:37]}  Rd8 {[%clk 0:02:30]} 17. Nxg6 {[%clk 0:02:32]}  hxg6 {[%clk 0:02:29]} 18. Be4 {[%clk 0:02:31]}  f5 {[%clk 0:02:29]} 19. Bf3 {[%clk 0:02:30]}  Ne6 {[%clk 0:02:28]} 20. a3 {[%clk 0:02:22]}  Nf4 {[%clk 0:02:15]} 21. Qc2 {[%clk 0:02:18]}  Bb8 {[%clk 0:01:53]} 22. h4 {[%clk 0:02:03]}  Qc7 {[%clk 0:01:41]} 23. g3 {[%clk 0:02:02]}  Ne6 {[%clk 0:01:42]} 24. Bd2 {[%clk 0:01:56]}  f4 {[%clk 0:01:36]} 25. g4 {[%clk 0:01:49]}  Qe7 {[%clk 0:01:34]} 26. g5 {[%clk 0:01:43]}  Kh7 {[%clk 0:01:31]} 27. Kg2 {[%clk 0:01:40]}  f6 {[%clk 0:01:17]} 28. Rh1 {[%clk 0:01:24]}  f5 {[%clk 0:01:10]} 29. Re1 {[%clk 0:01:20]}  Qd7 {[%clk 0:01:00]} 30. Qb3 {[%clk 0:01:17]}  Re8 {[%clk 0:00:54]} 31. Qc4 {[%clk 0:01:11]}  Nc7 {[%clk 0:00:37]} 32. Rxe8 {[%clk 0:01:08]}  Nxe8 {[%clk 0:00:37]} 33. a4 {[%clk 0:00:59]}  Nd6 {[%clk 0:00:34]} 34. Qe2 {[%clk 0:00:42]}  Ne4 {[%clk 0:00:34]} 35. Bc1 {[%clk 0:00:20]}  a6 {[%clk 0:00:29]} 36. Bxe4 {[%clk 0:00:16]}  fxe4 {[%clk 0:00:29]} 37. Qxe4 {[%clk 0:00:17]}  Qg4+ {[%clk 0:00:28]} 38. Kf1 {[%clk 0:00:14]}  Qxh4 {[%clk 0:00:16]} 39. Ke2 {[%clk 0:00:14]}  Qxg5 {[%clk 0:00:15]} 40. Bd2 {[%clk 0:00:13]}  Qg4+ {[%clk 0:00:15]} 41. f3 {[%clk 0:00:12]}  Qg2+ {[%clk 0:00:14]} 42. Kd3 {[%clk 0:00:13]}  Qf1+ {[%clk 0:00:15]} 43. Kc2 {[%clk 0:00:13]}  Qa1 {[%clk 0:00:12]} 44. Kb3 {[%clk 0:00:12]}  b5 {[%clk 0:00:12]} 45. axb5 {[%clk 0:00:10]}  axb5 {[%clk 0:00:10]} 46. Kc2 {[%clk 0:00:11]}  Qa4+ {[%clk 0:00:09]} 47. Kc1 {[%clk 0:00:11]}  Qa1+ {[%clk 0:00:09]} 48. Kc2 {[%clk 0:00:11]}  Qa4+ {[%clk 0:00:09]} 49. Kc1 {[%clk 0:00:12]}  Qc4 {[%clk 0:00:07]} 50. Bxf4 {[%clk 0:00:11]}  Qf1+ {[%clk 0:00:06]} 51. Kc2 {[%clk 0:00:11]}  Bxf4 {[%clk 0:00:04]} 52. Qxf4 {[%clk 0:00:11]}  Qe2+ {[%clk 0:00:05]} 53. Kb3 {[%clk 0:00:09]}  Qc4+ {[%clk 0:00:04]} 54. Kc2 {[%clk 0:00:10]}  Qe2+ {[%clk 0:00:04]} 55. Qd2 {[%clk 0:00:08]}  Qxf3 {[%clk 0:00:04]} 56. Qh2+ {[%clk 0:00:08]}  Kg8 {[%clk 0:00:04]} 57. Qb8+ {[%clk 0:00:09]}  Kh7 {[%clk 0:00:04]} 58. Qh2+ {[%clk 0:00:09]}  Qh5 {[%clk 0:00:05]} 59. Qd6 {[%clk 0:00:09]}  Qf5+ {[%clk 0:00:04]} 60. Kc1 {[%clk 0:00:07]}  Qf1+ {[%clk 0:00:04]} 61. Kc2 {[%clk 0:00:08]}  Qe2+ {[%clk 0:00:05]} 62. Kb3 {[%clk 0:00:07]}  Qc4+ {[%clk 0:00:05]} 63. Kc2 {[%clk 0:00:08]}  Qd5 {[%clk 0:00:05]} 64. Qh2+ {[%clk 0:00:08]}  Qh5 {[%clk 0:00:06]} 65. Qc7 {[%clk 0:00:07]}  Qf5+ {[%clk 0:00:05]} 66. Kb3 {[%clk 0:00:07]}  Qd5+ {[%clk 0:00:06]} 67. Kc2 {[%clk 0:00:05]}  g5 {[%clk 0:00:06]} 68. Qh2+ {[%clk 0:00:05]}  Kg6 {[%clk 0:00:06]} 69. Qe2 {[%clk 0:00:04]}  Qf5+ {[%clk 0:00:05]} 70. Kb3 {[%clk 0:00:04]}  g4 {[%clk 0:00:05]} 71. c4 {[%clk 0:00:04]}  bxc4+ {[%clk 0:00:05]} 72. Kxc4 {[%clk 0:00:00]}  Qb5+ {[%clk 0:00:05]} 0-1


[Site "https://www.chess.com"]